bitfinex-derivatives/quotes_ETHF0:USTF0_20250331
["timestamp","ask_amount","ask_price","bid_price","bid_amount"]
[1743455437104,1.09331,1829.7,1829.4,0.7236]
[1743455437304,2.55323,1829.6,1829.5,3.22739]
[1743455437608,1.09333,1829.6,1829.5,3.22739]
[1743455438804,1.4599,1829.7,1829.6,1.09333]
[1743455438805,2.55318,1829.7,1829.6,1.09333]
[1743455439004,2.55318,1829.7,1829.6,2.47763]
[1743455439201,6.88119,1830.2,1829.6,2.47763]
[1743455439202,1.09305,1830.1,1829.7,1.09327]
[1743455439406,1.4599,1830.1,1830.0,1.09305]
[1743455439807,2.55293,1830.1,1830.0,1.09305]
[1743455440210,2.55293,1830.1,1830.0,1.4993]
[1743455440606,1.09333,1829.7,1829.6,1.09331]
[1743455440806,1.09333,1829.7,1829.6,2.59261]
[1743455441013,1.09333,1829.7,1829.6,1.4993]
[1743455441217,1.09333,1829.7,1829.6,2.59263]
[1743455442108,1.09333,1829.7,1829.6,5.80043]
[1743455443308,1.09313,1830.0,1829.9,1.09312]
[1743455443510,1.09313,1830.0,1829.9,4.30092]
[1743455443805,1.09315,1829.9,1829.8,1.09318]
[1743455444009,1.09313,1830.0,1829.9,1.09313]
[1743455444216,1.09313,1830.0,1829.9,2.53643]
[1743455444411,1.4147,1830.1,1829.9,2.8607]
[1743455444615,2.50773,1830.1,1830.0,1.4433]
[1743455446509,1.09309,1830.0,1829.9,1.4174]
[1743455446709,2.48029,1830.0,1829.9,1.4174]
[1743455446908,2.48029,1830.0,1829.9,2.8042]
[1743455447608,2.48029,1830.0,1829.8,4.74516]
[1743455447609,1.09315,1829.9,1829.8,4.74516]
[1743455447808,2.48035,1829.9,1829.8,6.13096]
[1743455449018,1.3872,1829.9,1829.8,7.56526]
[1743455449313,2.48035,1829.9,1829.8,7.56526]
[1743455449715,1.3872,1829.9,1829.8,7.56526]
[1743455450424,2.48035,1829.9,1829.8,7.56526]
[1743455454216,1.3872,1829.9,1829.8,7.56526]
[1743455455610,2.48035,1829.9,1829.8,7.56526]
[1743455457020,1.3872,1829.9,1829.8,7.56526]
[1743455457319,2.48035,1829.9,1829.8,7.56526]
[1743455458323,1.3872,1829.9,1829.8,7.56526]
[1743455458525,2.48035,1829.9,1829.8,7.56526]
[1743455459120,1.09315,1830.0,1829.9,1.09311]
[1743455459313,2.44625,1830.0,1829.9,1.09311]
[1743455461817,2.73216,1830.4,1830.2,1.09297]
[1743455462023,3.2078,1830.5,1830.4,1.09285]
[1743455462024,3.8936,1830.5,1830.4,1.09285]
[1743455462213,4.98639,1830.5,1830.4,1.09285]
[1743455462618,1.09285,1830.4,1830.3,2.57627]
[1743455462922,1.09285,1830.4,1830.3,2.57631]
[1743455463113,2.53565,1830.4,1830.3,2.57631]
[1743455463519,2.53565,1830.4,1830.3,1.4834]
[1743455463822,2.53565,1830.4,1830.3,2.57631]
[1743455466725,1.4428,1830.4,1830.3,2.57631]
[1743455467321,2.53565,1830.4,1830.3,2.57631]
[1743455470122,2.53565,1830.4,1830.3,0.7432]
[1743455471125,2.53565,1830.4,1830.3,1.83611]
[1743455473525,2.53565,1830.4,1830.3,0.7432]
[1743455474245,2.53565,1830.4,1830.3,1.83611]
[1743455474420,2.53565,1830.4,1830.3,0.7432]
[1743455474926,4.17494,1830.4,1830.1,3.21600479]
[1743455475226,1.09297,1830.2,1830.1,0.00820479]
[1743455475721,3.21127,1830.2,1830.1,0.00820479]
[1743455481221,6.41907,1830.2,1830.1,0.00820479]
[1743455483531,6.41907,1830.2,1830.1,4.79e-06]
[1743455484028,8.91907,1830.2,1830.1,4.79e-06]
[1743455486738,6.41907,1830.2,1830.1,4.79e-06]
[1743455487837,6.51696392,1830.2,1830.1,4.79e-06]
[1743455488335,9.01696392,1830.2,1830.1,4.79e-06]
[1743455489530,5.46622,1829.8,1828.9,3.2078]
[1743455489729,3.2078,1829.2,1829.0,1.4398]
[1743455489929,1.09363,1829.1,1829.0,1.4398]
[1743455490129,2.45243,1829.1,1829.0,1.4398]
[1743455490932,2.45243,1829.1,1829.0,2.9098]
[1743455493839,1.09369,1829.0,1828.9,0.00820479]
[1743455494047,9.39119,1829.0,1828.9,0.00820479]
[1743455496141,9.39119,1829.0,1828.9,4.79e-06]
[1743455496142,11.89119,1829.0,1828.9,4.79e-06]
[1743455496643,11.98898985,1829.0,1828.9,4.79e-06]
[1743455496943,9.48898985,1829.0,1828.9,4.79e-06]
[1743455497441,9.39119,1829.0,1828.9,4.79e-06]
[1743455497648,9.48898829,1829.0,1828.9,4.79e-06]
[1743455498041,11.98898829,1829.0,1828.9,4.79e-06]
[1743455498244,9.48898829,1829.0,1828.9,4.79e-06]
[1743455498542,1.09369,1829.0,1828.9,4.79e-06]
[1743455498942,1.09369,1829.0,1828.9,2.93810479]
[1743455500947,4.30149,1829.0,1828.9,2.93810479]
[1743455506044,4.30149,1829.0,1828.9,2.18890479]
[1743455507342,7.95249,1829.0,1828.9,2.18890479]
[1743455511148,7.95249,1829.0,1828.9,4.79e-06]
[1743455511350,8.66529,1829.0,1828.9,4.79e-06]
[1743455515950,8.76316776,1829.0,1828.9,4.79e-06]
[1743455516151,8.66529,1829.0,1828.9,4.79e-06]
[1743455516645,8.76316978,1829.0,1828.9,4.79e-06]
[1743455517646,5.55536978,1829.0,1828.9,4.79e-06]
[1743455517955,8.76316978,1829.0,1828.9,4.79e-06]
[1743455518149,8.76316788,1829.0,1828.9,4.79e-06]
[1743455519751,8.76316776,1829.0,1828.9,4.79e-06]
[1743455520954,8.76318022,1829.0,1828.9,4.79e-06]
[1743455521463,8.66529,1829.0,1828.9,4.79e-06]
[1743455521955,10.10749,1829.0,1828.9,4.79e-06]
[1743455525751,6.45649,1829.0,1828.9,4.79e-06]
[1743455525958,2.73407,1829.1,1828.9,1.09375479]
[1743455525959,1.09364,1829.1,1828.9,1.09375479]
[1743455526156,3.21600479,1829.2,1829.0,3.22926]
[1743455526354,4.30957479,1829.2,1829.1,2.1053]
[1743455528875,3.21600479,1829.2,1829.1,3.19893]
[1743455529273,1.0935,1829.4,1829.2,1.09357]
[1743455529474,3.2078,1829.6,1829.3,1.4277]
[1743455529675,1.4151,1829.9,1829.4,0.7368]
[1743455529676,5.0562,1829.8,1829.4,0.7368]
[1743455529877,1.09333,1829.6,1829.5,1.4277]
[1743455530073,1.09331,1829.7,1829.5,1.4277]
[1743455530575,1.09333,1829.6,1829.5,1.4277]
[1743455530977,1.10144,1829.8,1829.6,1.09332]
[1743455531170,1.10144,1829.8,1829.7,1.4277]
[1743455532581,1.10144,1829.8,1829.7,2.1336]
[1743455532781,0.0082,1829.8,1829.7,3.22687]
[1743455533480,1.10141,1829.8,1829.7,2.1336]
[1743455533678,1.10141,1829.8,1829.7,1.4277]
[1743455533874,3.216,1829.8,1829.4,1.4535]
[1743455534185,1.0933,1829.7,1829.5,1.09336]
[1743455534775,1.09337,1829.6,1829.4,2.54693]
[1743455535084,1.3956,1829.7,1829.5,1.4102]
[1743455535385,1.09333,1829.6,1829.5,1.4102]
[1743455537071,4.30113,1829.6,1829.5,1.4102]
[1743455537987,4.30113,1829.6,1828.9,6.38433479]
[1743455537988,2.7339,1829.3,1828.9,4.79e-06]
[1743455538179,1.09369,1829.0,1828.9,4.79e-06]
[1743455539479,1.09369,1829.0,1828.9,2.87190479]
[1743455539674,1.09369,1829.0,1828.9,3.96565479]
[1743455539874,1.09369,1829.0,1828.9,2.87190479]
[1743455542678,2.53499,1829.0,1828.9,2.87190479]
[1743455543980,2.53499,1829.0,1828.9,4.79e-06]
[1743455546584,3.21629,1829.0,1828.9,4.79e-06]
[1743455554297,3.90559,1829.0,1828.9,4.79e-06]
[1743455559000,4.00344204,1829.0,1828.9,4.79e-06]
[1743455560487,6.50344204,1829.0,1828.9,4.79e-06]
[1743455562701,7.65344204,1829.0,1828.9,4.79e-06]
[1743455562901,7.55559,1829.0,1828.9,4.79e-06]
[1743455563798,7.65343112,1829.0,1828.9,4.79e-06]
[1743455566200,7.65344308,1829.0,1828.9,4.79e-06]
[1743455566903,7.65345129,1829.0,1828.9,4.79e-06]
[1743455567709,7.55559,1829.0,1828.9,4.79e-06]
[1743455567906,7.65345467,1829.0,1828.9,4.79e-06]
[1743455569608,7.65345529,1829.0,1828.9,4.79e-06]
[1743455570503,1.09381,1828.8,1828.7,1.4869]
[1743455570702,4.30161,1828.8,1828.7,1.4869]
[1743455572797,5.65691,1828.8,1828.7,1.4869]
[1743455578610,1.09386,1828.7,1828.6,0.74210479]
[1743455578813,6.20796,1828.7,1828.6,2.24500479]
[1743455582111,6.20796,1828.7,1828.6,0.00820479]
[1743455582613,6.94186,1828.7,1828.6,0.00820479]
[1743455583513,1.09404,1828.4,1828.3,0.731]
[1743455583816,7.95084,1828.4,1828.3,0.731]
[1743455584705,7.95084,1828.4,1828.3,2.2188]
[1743455585712,7.95084,1828.4,1828.2,0.74050479]
[1743455585713,1.0941,1828.3,1828.2,0.74050479]
[1743455585918,2.5479,1828.3,1828.2,0.74050479]
[1743455586915,2.64571187,1828.3,1828.2,4.79e-06]
[1743455587110,5.14571187,1828.3,1828.2,4.79e-06]
[1743455587516,11.05171187,1828.3,1828.2,4.79e-06]
[1743455588320,11.0517016,1828.3,1828.2,4.79e-06]
[1743455589119,1.09452,1827.6,1827.5,1.4728]
[1743455589419,7.95132,1827.6,1827.5,1.4728]
[1743455592117,3.2078,1827.9,1827.6,1.09452]
[1743455592420,1.0944,1827.8,1827.7,2.1937]
[1743455592817,1.0944,1827.8,1827.7,4.6937]
[1743455593725,1.0944,1827.8,1827.7,2.1937]
[1743455598720,1.0944,1827.8,1827.7,3.28816]
[1743455598921,1.0944,1827.8,1827.7,2.1937]
[1743455599431,1.0944,1827.8,1827.7,3.28816]
[1743455599628,1.0944,1827.8,1827.7,2.1937]
[1743455601531,1.0944,1827.8,1827.7,3.28816]
[1743455601731,1.0944,1827.8,1827.7,2.1937]
[1743455604332,1.0944,1827.8,1827.7,3.28816]
[1743455604536,1.0944,1827.8,1827.7,2.1937]
[1743455604847,1.0944,1827.8,1827.7,3.28816]
[1743455605731,0.00820479,1827.9,1827.8,1.0944]
[1743455605935,1.10254479,1827.9,1827.8,3.2109]
[1743455606933,1.10254479,1827.9,1827.8,2.1165]
[1743455607324,1.10254479,1827.9,1827.8,3.2109]
[1743455607730,1.10254479,1827.9,1827.8,2.1165]
[1743455615239,2.51464479,1827.9,1827.8,2.1165]
[1743455617937,3.19944479,1827.9,1827.8,2.1165]
[1743455620942,3.19944479,1827.9,1827.8,2.78385084]
[1743455624350,3.19944479,1827.9,1827.8,2.08905084]
[1743455624548,3.19944479,1827.9,1827.8,1.4217]
[1743455625165,1.09458,1827.5,1827.4,0.00820479]
[1743455625858,3.94678,1827.5,1827.4,0.00820479]
[1743455630754,3.25318,1827.5,1827.4,0.00820479]
[1743455631257,3.25318,1827.5,1827.4,1.43650479]
[1743455632561,3.96408,1827.5,1827.4,1.43650479]
[1743455632859,3.96408,1827.5,1827.4,0.00820479]
[1743455636061,7.17188,1827.5,1827.4,0.00820479]
[1743455641465,3.2078,1827.5,1827.4,0.00820479]
[1743455641657,3.4355,1827.8,1827.4,0.00820479]
[1743455641862,1.09454,1827.6,1827.5,1.09456]
[1743455642064,1.09454,1827.6,1827.5,1.4726]
[1743455642259,1.09454,1827.6,1827.5,2.56718]
[1743455642464,1.09454,1827.6,1827.5,4.02438]
[1743455644165,1.09454,1827.6,1827.5,2.9298]
[1743455649567,2.48194,1827.6,1827.5,2.9298]
[1743455653069,1.09454,1827.6,1827.5,4.02438]
[1743455653471,1.09454,1827.6,1827.5,2.9298]
[1743455653670,1.09454,1827.6,1827.5,4.02438]
[1743455655465,1.09454,1827.6,1827.5,2.9298]
[1743455656468,1.09454,1827.6,1827.5,4.02438]
[1743455656873,1.09454,1827.6,1827.5,2.9298]
[1743455657171,1.09454,1827.6,1827.5,4.02438]
[1743455657673,1.09454,1827.6,1827.5,2.9298]
[1743455657869,1.09454,1827.6,1827.5,4.02438]
[1743455658273,1.09454,1827.6,1827.5,2.9298]
[1743455658576,1.09458,1827.5,1827.4,0.00820479]
[1743455658771,2.54788,1827.5,1827.4,0.00820479]
[1743455659972,2.54788,1827.5,1827.4,1.84344479]
[1743455661177,2.54788,1827.5,1827.4,0.74880479]
[1743455661562,2.54788,1827.5,1827.4,2.21800479]
[1743455663276,5.75568,1827.5,1827.4,2.21800479]
[1743455669272,5.75568,1827.5,1827.4,0.00820479]
[1743455669777,6.43928,1827.5,1827.4,0.00820479]
[1743455671975,7.11938,1827.5,1827.4,0.00820479]
[1743455673479,7.11938,1827.5,1827.4,1.41880479]
[1743455674082,2.54788,1827.5,1827.4,1.41880479]
[1743455674283,1.09458,1827.5,1827.4,5.72124479]
[1743455674780,1.09458,1827.5,1827.4,6.39894479]
[1743455675681,1.09458,1827.5,1827.4,2.09650479]
[1743455675881,1.09458,1827.5,1827.4,3.19114479]
[1743455676075,1.09458,1827.5,1827.4,2.09650479]
[1743455676276,1.09458,1827.5,1827.4,3.19114479]
[1743455676582,2.45127,1827.6,1827.5,1.09458]
[1743455676788,2.45127,1827.6,1827.5,3.23818]
[1743455678685,1.09458,1827.5,1827.4,0.00820479]
[1743455678984,1.09458,1827.5,1827.4,2.55154479]
[1743455679387,1.09458,1827.5,1827.4,3.25954479]
[1743455679888,2.53637,1827.6,1827.5,1.09458]
[1743455680079,2.53637,1827.6,1827.5,2.54328]
[1743455681782,2.53637,1827.6,1827.4,0.71620479]
[1743455681783,1.09458,1827.5,1827.4,0.00820479]
[1743455681982,2.47268,1827.5,1827.4,0.00820479]
[1743455682380,2.47268,1827.5,1827.4,3.18634479]
[1743455685882,1.09458,1827.5,1827.4,3.18634479]
[1743455686285,2.48258,1827.6,1827.5,1.09458]
[1743455686488,2.48258,1827.6,1827.5,2.55928]
[1743455687482,0.00820479,1827.9,1827.8,1.0944]
[1743455687794,1.09431,1828.0,1827.9,1.09429]
[1743455687987,1.09431,1828.0,1827.9,2.55899]
[1743455689591,1.09434,1827.9,1827.8,4.30215]
[1743455689786,2.55554,1827.9,1827.8,2.45415]
[1743455690091,2.55554,1827.9,1827.8,3.12808585]
[1743455691093,1.4612,1827.9,1827.8,3.12808585]
[1743455691297,2.55554,1827.9,1827.8,3.12808585]
[1743455691483,1.09433,1828.0,1827.9,1.09434]
[1743455691682,2.55553,1828.0,1827.9,2.45414]
[1743455692603,2.55548,1828.0,1827.9,2.45414]
[1743455694603,2.55548,1828.0,1827.9,1.3598]
[1743455694802,1.0944,1827.9,1827.8,1.09438]
[1743455695008,3.2448,1827.9,1827.8,2.45028]
[1743455700207,3.2448,1827.9,1827.8,1.09438]
[1743455700602,2.73602,1827.8,1827.4,3.21600479]
[1743455700907,2.73602,1827.8,1827.4,4.31062479]
[1743455700908,1.09458,1827.5,1827.4,4.31062479]
[1743455701607,1.09458,1827.5,1827.4,4.98380824]
[1743455701911,2.56968,1827.5,1827.4,4.98380824]
[1743455702206,2.56968,1827.5,1827.4,3.88918824]
[1743455703012,2.56968,1827.5,1827.4,3.21600479]
[1743455705211,2.73682,1827.3,1826.8,1.5339797]
[1743455705514,1.09493,1827.0,1826.9,1.7682797]
[1743455706306,2.55067,1827.1,1827.0,1.09488]
[1743455706505,1.09488,1827.0,1826.9,1.7682597]
[1743455706806,2.55068,1827.0,1826.9,1.7682597]
[1743455707006,2.55068,1827.0,1826.9,1.09491]
[1743455708809,2.55068,1827.0,1826.9,1.09494]
[1743455709217,1.4558,1827.0,1826.9,1.09494]
[1743455709416,2.55068,1827.0,1826.9,4.30274]
[1743455710106,2.55068,1827.0,1826.9,3.2078]
[1743455711608,1.09494,1826.9,1826.8,0.00820479]
[1743455711803,3.19354,1826.9,1826.8,0.00820479]
[1743455712114,3.88404,1826.9,1826.8,0.00820479]
[1743455713215,3.88404,1826.9,1826.8,1.10320479]
[1743455713216,1.09494,1826.9,1826.8,1.10320479]
[1743455713407,1.09494,1826.9,1826.8,1.82480479]
[1743455716306,2.45193,1827.0,1826.9,1.09494]
[1743455716508,2.45193,1827.0,1826.9,1.83544]
[1743455717008,2.45193,1827.0,1826.9,3.20714]
[1743455719618,2.45193,1827.0,1826.9,1.3717]
[1743455720117,2.45193,1827.0,1826.9,2.46664]
[1743455720710,2.45193,1827.0,1826.9,1.3717]
[1743455721015,2.45193,1827.0,1826.9,2.46664]
[1743455722214,2.45193,1827.0,1826.9,1.3717]
[1743455723215,2.45193,1827.0,1826.9,2.46664]
[1743455723817,2.45193,1827.0,1826.9,1.3717]
[1743455724618,3.48687479,1827.1,1826.9,1.3717]
[1743455724828,1.09493,1827.0,1826.9,2.46664]
[1743455725618,3.48687479,1827.1,1826.9,2.46664]
[1743455725821,1.84462479,1827.1,1827.0,1.4715]
[1743455726818,7.09589,1827.2,1827.0,1.4715]
[1743455727119,1.09482,1827.1,1827.0,1.4715]
[1743455727821,2.46032,1827.1,1827.0,1.4715]
[1743455728514,1.09494,1826.9,1826.8,0.72980479]
[1743455728716,4.73794,1826.9,1826.8,0.00820479]
[1743455728920,6.84144,1826.9,1826.8,0.00820479]
[1743455730017,7.57064,1826.9,1826.8,0.00820479]
[1743455730515,10.07064,1826.9,1826.8,19.04744001]
[1743455730714,1.09524,1826.4,1826.3,1.4113]
[1743455731316,2.46274,1826.4,1826.3,1.4113]
[1743455731726,2.46274,1826.4,1826.3,42.2113]
[1743455733721,2.73766,1826.8,1826.4,1.09523]
[1743455733918,1.09512,1826.6,1826.5,1.4822]
[1743455734525,2.47382,1826.6,1826.5,1.4822]
[1743455734722,3.15782,1826.6,1826.5,42.2822]
[1743455736829,3.15782,1826.6,1826.5,40.8]
[1743455749435,1.09512,1826.6,1826.5,40.8]
[1743455750027,1.09512,1826.6,1826.5,42.1674]
[1743455750830,1.3576,1826.7,1826.5,42.1674]
[1743455751025,3.643,1826.8,1826.6,1.3842]
[1743455751221,4.738,1826.8,1826.7,0.7374]
[1743455751530,4.738,1826.8,1826.7,41.5374]
[1743455751734,4.738,1826.8,1826.7,42.9216]
[1743455754333,1.095,1826.8,1826.7,42.9216]
[1743455754736,1.095,1826.8,1826.7,44.01666]
[1743455755337,4.73793,1827.0,1826.8,1.09495]
[1743455755532,4.73788,1827.0,1826.9,1.84724]
[1743455755731,1.09488,1827.0,1826.9,1.84724]
[1743455756137,1.09488,1827.0,1826.9,42.64724]
[1743455756334,1.09488,1827.0,1826.9,44.01114]
[1743455756835,1.09488,1827.0,1826.9,42.9162]
[1743455757232,1.09488,1827.0,1826.9,44.01114]
[1743455760541,1.09488,1827.0,1826.9,42.9162]
[1743455760937,1.09488,1827.0,1826.9,44.01114]
[1743455761236,1.09488,1827.0,1826.9,44.0111]
[1743455761440,0.00820479,1827.2,1827.1,1.09482]
[1743455761743,1.10296479,1827.2,1827.1,1.09482]
[1743455761947,1.10296479,1827.2,1827.1,3.00868304]
[1743455762140,1.10296479,1827.2,1827.1,42.2746]
[1743455762443,0.00820479,1827.2,1827.1,43.36942]
[1743455762745,1.10296479,1827.2,1827.1,42.2746]
[1743455763038,1.10296479,1827.2,1827.1,43.36942]
[1743455763746,0.00820479,1827.2,1827.1,43.36942]
[1743455764343,1.10296479,1827.2,1827.1,43.36942]
[1743455771847,1.10296479,1827.2,1827.1,42.2746]
[1743455773344,1.10296479,1827.2,1827.1,43.36942]
[1743455774352,1.10296479,1827.2,1827.1,42.2746]
[1743455774754,1.81976479,1827.2,1827.1,42.2746]
[1743455774960,3.32106479,1827.2,1827.1,42.2746]
[1743455775355,3.32106479,1827.2,1827.1,40.8]
[1743455780356,5.47483,1826.9,1826.0,3.2078]
[1743455780556,4.3031,1826.3,1826.0,2.153]
[1743455780759,1.0953,1826.3,1826.1,1.4148]
[1743455780957,1.0953,1826.3,1826.2,0.75960479]
[1743455781458,1.0953,1826.3,1826.2,41.55960479]
[1743455781853,2.5126,1826.3,1826.2,41.55960479]
[1743455782449,2.5126,1826.3,1826.2,40.80820479]
[1743455782658,5.7204,1826.3,1826.2,40.80820479]
[1743455783661,5.7204,1826.3,1826.0,0.6881]
[1743455783662,1.09554,1825.9,1825.8,0.6967]
[1743455784657,4.30334,1825.9,1825.8,40.8]
[1743455785069,5.79534,1825.9,1825.8,40.8]
[1743455787268,1.0956,1825.8,1825.7,0.00820479]
[1743455787467,6.1745,1825.8,1825.7,0.00820479]
[1743455788268,6.1745,1825.8,1825.7,40.80820479]
[1743455789068,1.09584,1825.4,1825.3,1.3561]
[1743455789264,7.94464,1825.4,1825.3,1.3561]
[1743455789568,1.09602,1825.1,1825.0,1.4049]
[1743455789765,1.09602,1825.1,1825.0,2.8324]
[1743455790063,1.09602,1825.1,1825.0,43.6324]
[1743455791868,1.09602,1825.1,1825.0,44.72848]
[1743455792365,1.09602,1825.1,1825.0,43.6324]
[1743455793074,6.3807,1825.4,1825.0,46.8402]
[1743455793274,3.642,1825.5,1825.2,3.2078]
[1743455793569,4.73779,1825.5,1825.4,1.09584]
[1743455793765,1.09584,1825.4,1825.3,2.58376]
[1743455794169,4.73783,1825.5,1825.4,1.09584]
[1743455794367,4.73783,1825.5,1825.4,2.58374]
[1743455794760,4.73783,1825.5,1825.4,43.38374]
[1743455795165,3.642,1825.7,1825.5,1.09576]
[1743455795364,4.73766,1825.7,1825.6,1.4879]
[1743455796770,1.09566,1825.7,1825.6,1.4879]
[1743455797073,4.73766,1825.7,1825.6,1.4879]
[1743455797767,1.09566,1825.7,1825.6,42.2879]
[1743455797967,4.73766,1825.7,1825.6,42.2879]
[1743455798365,1.09566,1825.7,1825.6,42.2879]
[1743455799768,1.09566,1825.7,1825.6,43.38362]
[1743455802473,1.09566,1825.7,1825.6,42.2879]
[1743455807175,2.55476,1825.7,1825.6,42.2879]
[1743455809179,1.09566,1825.7,1825.6,42.2879]
[1743455813880,1.09566,1825.7,1825.6,42.96268899]
[1743455814775,6.8488,1826.8,1826.0,2.73867]
[1743455814986,2.73781,1826.6,1826.2,1.09533]
[1743455815190,5.47575,1826.6,1826.1,3.54808899]
[1743455815484,5.47575,1826.6,1826.2,3.17983899]
[1743455815485,1.0953,1826.4,1826.2,3.17983899]
[1743455815684,1.09522,1826.5,1826.3,1.4097]
[1743455815885,1.09512,1826.7,1826.4,40.8]
[1743455816079,0.00820479,1826.6,1826.5,2.50488]
[1743455816385,0.00820479,1826.6,1826.5,3.25738]
[1743455816573,0.00820479,1826.6,1826.5,3.9302845]
[1743455816783,0.00820479,1826.6,1826.5,44.7302845]
[1743455818182,1.095,1826.8,1826.7,1.09501]
[1743455818879,1.095,1826.8,1826.7,2.58021]
[1743455819078,1.095,1826.8,1826.7,43.38021]
[1743455819684,1.10317479,1826.9,1826.7,43.38021]
[1743455820287,1.095,1826.8,1826.7,42.2852]
[1743455820488,2.5661,1826.8,1826.7,42.2852]
[1743455820791,2.5661,1826.8,1826.7,40.8]
[1743455821085,6.4902,1826.8,1826.7,40.8]
[1743455821488,8.9902,1826.8,1826.7,40.8]
[1743455822687,6.4902,1826.8,1826.7,40.8]
[1743455826491,1.09518,1826.5,1826.4,1.4684]
[1743455826688,4.73518,1826.5,1826.4,1.4684]
[1743455827090,6.18128,1826.5,1826.4,1.4684]
[1743455827493,6.18128,1826.5,1826.4,42.2684]
[1743455833589,4.73518,1826.5,1826.4,42.2684]
[1743455835292,1.09518,1826.5,1826.4,42.2684]
[1743455837496,1.09518,1826.5,1826.4,43.36364]
[1743455839491,1.09518,1826.5,1826.4,43.36359]
[1743455839716,6.37669,1826.7,1826.5,1.09516]
[1743455839717,1.09517,1826.6,1826.5,1.09516]
[1743455839905,1.09517,1826.6,1826.5,2.57066]
[1743455840302,1.09517,1826.6,1826.5,1.4755]
[1743455840502,1.09517,1826.6,1826.5,42.2755]
[1743455841607,1.09517,1826.6,1826.5,43.37068]
[1743455841806,1.09517,1826.6,1826.5,42.2755]
[1743455842800,4.30297,1826.6,1826.5,40.8]
[1743455843102,8.89447,1826.6,1826.5,40.8]
[1743455844305,6.39447,1826.6,1826.5,40.8]
[1743455847110,1.09524,1826.4,1826.3,1.4575]
[1743455847408,1.0953,1826.3,1826.2,0.00820479]
[1743455847613,3.2636,1826.3,1826.2,0.00820479]
[1743455847922,3.2636,1826.3,1826.2,1.43250479]
[1743455848105,3.2636,1826.3,1826.2,42.23250479]
[1743455854217,6.4714,1826.3,1826.2,42.23250479]
[1743455855619,6.4714,1826.3,1826.2,40.80820479]
[1743455855816,7.1942,1826.3,1826.2,40.80820479]
[1743455869326,6.4714,1826.3,1826.2,40.80820479]
[1743455872628,4.3031,1826.3,1826.2,40.80820479]
[1743455872830,4.7333,1826.3,1826.2,40.80820479]
[1743455873722,4.7333,1826.3,1826.2,41.52210479]
[1743455875434,1.09514,1826.6,1826.4,1.09523]
[1743455875730,1.09514,1826.6,1826.5,1.4048]
[1743455876127,1.09514,1826.6,1826.5,42.2048]
[1743455877633,2.74559479,1826.9,1826.5,42.2048]
[1743455877830,1.09512,1826.6,1826.5,43.6462]
[1743455878030,1.09512,1826.6,1826.5,42.2048]
[1743455878230,1.09512,1826.6,1826.5,43.29998]
[1743455878428,1.0951,1826.7,1826.5,43.29998]
[1743455878630,1.09512,1826.6,1826.5,43.29998]
[1743455880130,1.09512,1826.6,1826.5,42.2048]
[1743455880727,1.09508,1826.7,1826.6,1.09509]
[1743455880935,1.09511,1826.7,1826.6,1.09511]
[1743455881122,3.638,1826.8,1826.5,2.07854307]
[1743455881432,1.09512,1826.6,1826.5,3.17368307]
[1743455881631,1.09512,1826.6,1826.5,2.49994]
[1743455882034,1.09512,1826.6,1826.5,43.29994]
[1743455883333,6.37552,1826.8,1826.5,43.29994]
[1743455883334,1.0951,1826.7,1826.6,1.0951]
[1743455883522,1.09512,1826.6,1826.5,43.29994]
[1743455886138,1.09508,1826.7,1826.6,1.09508]
[1743455886837,1.09508,1826.7,1826.6,41.89508]
[1743455889439,4.73306,1826.8,1826.6,41.89508]
[1743455889640,4.73306,1826.8,1826.7,1.09506]
[1743455889936,4.733,1826.8,1826.7,1.09506]
[1743455890139,3.638,1826.8,1826.7,1.09506]
[1743455890341,3.638,1826.8,1826.7,41.89506]
[1743455890535,1.095,1826.8,1826.7,41.89506]
[1743455891641,1.10319479,1826.9,1826.8,1.095]
[1743455891832,1.10319479,1826.9,1826.8,1.7853]
[1743455892234,1.10319479,1826.9,1826.8,42.5853]
[1743455893539,0.00820479,1826.9,1826.8,42.5853]
[1743455893735,0.00820479,1826.9,1826.8,45.0853]
[1743455893936,1.09484,1827.1,1827.0,1.09488]
[1743455894741,1.09484,1827.1,1827.0,41.89488]
[1743455894940,0.00820479,1827.2,1827.1,1.09479]
[1743455895138,0.00820479,1827.2,1827.1,1.82009]
[1743455895638,0.00820479,1827.2,1827.1,42.62009]
[1743455896536,1.10296479,1827.2,1827.1,42.62009]
[1743455897039,1.10296479,1827.2,1827.1,44.03419]
[1743455897440,1.10296479,1827.2,1827.1,42.2141]
[1743455897938,3.29256479,1827.2,1827.1,42.2141]
[1743455906450,3.29256479,1827.2,1827.1,40.8]
[1743455910748,6.50036479,1827.2,1827.1,40.8]
[1743455911251,1.09482,1827.1,1827.0,0.00820479]
[1743455911449,2.58092,1827.1,1827.0,0.00820479]
[1743455912342,2.58092,1827.1,1827.0,40.80820479]
[1743455912850,6.21492,1827.1,1827.0,40.80820479]
[1743455922460,2.58092,1827.1,1827.0,40.80820479]
[1743455922763,4.72882,1827.1,1827.0,40.80820479]
[1743455923557,1.09482,1827.1,1827.0,42.21330479]
[1743455923758,4.72882,1827.1,1827.0,42.21330479]
[1743455924561,6.14412,1827.1,1827.0,42.21330479]
[1743455926162,1.09512,1826.6,1825.7,2.01535791]
[1743455926462,1.09554,1825.9,1825.8,4.62913056]
[1743455926653,1.09554,1825.9,1825.8,0.67471799]
[1743455926860,1.09554,1825.9,1825.3,1.4123]
[1743455926861,1.09584,1825.4,1825.3,1.4123]
[1743455927258,1.09584,1825.4,1825.3,42.2123]
[1743455927758,1.49110479,1825.5,1825.3,42.2123]
[1743455927759,1.10401479,1825.5,1825.3,42.2123]
[1743455928169,1.09584,1825.4,1825.3,42.2123]
[1743455929575,1.09584,1825.4,1825.3,43.687]
[1743455933971,1.09584,1825.4,1825.3,44.7829]
[1743455934172,1.09584,1825.4,1825.3,43.687]
[1743455935372,1.09584,1825.4,1825.3,44.7829]